Workbook

Sheet полевые раб.
B1: ИНФОРМАЦИЯ ПО ВЕРЕЩАГИНСКОМУ ГОРОДСКОМУ ОКРУГУ
A2: Полевые работы на 27.06.2022
A3: Наименование хозяйства | D3: Подкормка многолетних трав, га | E3: Подкормка озимых, га | F3: Боронование многолетних трав, га | G3: Боронование озимых, га | H3: Весновспашка,га | I3: Культивация | J3: Закрытие влаги, га | K3: Протравлено семян, т
A4: ОАО ППС "Тимирязевский"
A5: ООО "Ленинское" | D5: 20 | F5: 642 | I5: 250 | J5: 250
A6: ООО "Агросепыч" | D6: 755 | F6: 1860 | I6: 472 | J6: 472
A7: ООО АП "Соколово" | F7: 2100 | H7: 390 | I7: 70 | J7: 790
A8: ООО АФ "Галинское" | F8: 1800 | I8: 520 | J8: 700
A9: ООО "Заполье" | D9: 800 | F9: 1600 | I9: 1300 | J9: 1300
A10: ООО АП "Заря Путино" | D10: 492 | E10: 379 | F10: 1765 | H10: 129 | I10: 5642 | J10: 5642 | K10: 960
A11: Итого по предприятиям: | D11: =SUM(D4:D10) -> 2067 | E11: 379 | F11: 9767 | G11: 0 | H11: 519 | I11: 8254 | J11: =SUM(J4:J10) -> 9154 | K11: =SUM(K4:K10) -> 960
A12: КФХ | F12: 1848.2 | H12: 1 | I12: 801 | J12: 771
A13: ВСЕГО: | D13: =D11+D12 -> 2067 | E13: =E11+E12 -> 379 | F13: 11615.2 | G13: 0 | H13: 520 | I13: 9055 | J13: 9925 | K13: 960
A14: На 07.06.2021г. | D14: 3389 | E14: 393 | F14: 10335 | G14: 467 | H14: 1 | I14: 10771 | J14: 11765 | K14: 1050

Sheet сев
A2: Наименование хозяйства | D2: Яровой сев (зерновые и зернобобовые), га | S2: Зрновые и зернобобовые, всего, га | V2: Яровой сев (прочие), га | AE2: Яровой сев, всего, га | AG2: %
D3: пшеница | G3: ячмень | J3: овес | M3: зернобобовые (горох,вика) | P3: прочие | S3: План | T3: Факт | U3: % | V3: рапс | Y3: кукуруза | AB3: однолетние | AC3: мн. травы б/п | AD3: картофель | AE3: План | AF3: Факт
D4: план | E4: факт | F4: % | G4: план | H4: факт | I4: % | J4: план | K4: факт | L4: % | M4: план | N4: факт | O4: % | P4: план | Q4: факт | R4: % | V4: план | W4: факт | X4: % | Y4: план | Z4: факт | AA4: %
A5: ОАО ППС "Тимирязевский" | F5: =E5/D5*100 ->  | I5: =H5/G5*100 ->  | L5: =K5/J5*100 ->  | O5: =N5/M5*100 ->  | R5: =Q5/P5*100 ->  | U5: =T5/S5*100 ->  | X5: =W5/V5*100 ->  | AA5: =Z5/Y5*100 ->  | AG5: =AF5/AE5*100 -> 
A6: ООО "Ленинское" | D6: 55 | E6: 80 | F6: =E6/D6*100 -> 145.4545455 | G6: 53 | H6: 90 | I6: =H6/G6*100 -> 169.8113208 | J6: 65 | K6: 80 | L6: =K6/J6*100 -> 123.0769231 | O6: =N6/M6*100 ->  | R6: =Q6/P6*100 ->  | S6: 173 | T6: =E6+H6+K6+N6+Q6 -> 250 | U6: 144.5086705 | AE6: 173 | AF6: =T6+W6+Z6+AC6+AB6 -> 250 | AG6: 144.5086705
A7: ООО "Агросепыч" | G7: 293 | H7: 421 | I7: 143.6860068 | J7: 212 | K7: 106 | L7: 50 | S7: 505 | T7: =E7+H7+K7+N7+Q7 -> 527 | U7: 104.3564356 | AC7: 95 | AE7: 505 | AF7: =T7+W7+Z7+AC7+AB7 -> 622 | AG7: 123.1683168
A8: ООО АП "Соколово" | J8: 200 | K8: 200 | L8: 100 | S8: 200 | T8: 200 | U8: 100 | AB8: 590 | AE8: 790 | AF8: 790 | AG8: 100
A9: ООО АФ "Галинское" | D9: 110 | E9: 110 | F9: 100 | G9: 40 | H9: 40 | I9: 100 | J9: 250 | K9: 250 | L9: 100 | S9: 400 | T9: 400 | U9: 100 | AB9: 300 | AE9: 700 | AF9: 700 | AG9: 100
A10: ООО "Заполье" | D10: 100 | E10: 100 | F10: 100 | G10: 200 | H10: 200 | I10: 100 | J10: 200 | K10: 200 | L10: 100 | S10: 500 | T10: 500 | U10: 100 | AB10: 800 | AE10: 1300 | AF10: 1300 | AG10: 100
A11: ООО АП "Заря Путино" | D11: 566 | E11: 566 | F11: 100 | G11: 1259 | H11: 1259 | I11: 100 | J11: 525 | K11: 525 | L11: 100 | S11: 2350 | T11: 2350 | U11: 100 | V11: 652 | W11: 652 | X11: 100 | Y11: 536 | Z11: 536 | AA11: =Z11/Y11*100 -> 100 | AB11: 2104 | AE11: 5642 | AF11: 5642 | AG11: 100
A12: Итого по предприятиям: | D12: =SUM(D5:D11) -> 831 | E12: =SUM(E5:E11) -> 856 | F12: 103.0084236 | G12: 1845 | H12: 2010 | I12: 108.9430894 | J12: 1452 | K12: 1361 | L12: 93.73278237 | M12: 0 | N12: 0 | P12: 0 | Q12: 0 | S12: 4128 | T12: 4227 | U12: 102.3982558 | V12: 652 | W12: 652 | X12: 100 | Y12: 536 | Z12: 536 | AA12: 100 | AB12: 3794 | AC12: 95 | AD12: 0 | AE12: 9110 | AF12: 9304 | AG12: 102.129528
A13: КФХ | D13: 326 | E13: 283 | F13: 86.80981595 | G13: 144 | H13: 144 | I13: 100 | J13: 235 | K13: 303 | L13: 128.9361702 | S13: 705 | T13: =E13+H13+K13+N13+Q13 -> 730 | U13: 103.5460993 | AC13: 70 | AD13: 1 | AE13: 706 | AF13: =T13+W13+Z13+AD13+AC13 -> 801 | AG13: 113.4560907
A14: ВСЕГО: | D14: =D12+D13 -> 1157 | E14: =E12+E13 -> 1139 | F14: 98.44425238 | G14: 1989 | H14: 2154 | I14: 108.2956259 | J14: 1687 | K14: 1664 | L14: 98.63663308 | M14: 0 | N14: 0 | P14: 0 | Q14: 0 | S14: 4833 | T14: 4957 | U14: 102.5656942 | V14: 652 | W14: 652 | X14: 100 | Y14: 536 | Z14: 536 | AA14: 100 | AB14: 3794 | AC14: 165 | AD14: 1 | AE14: 9816 | AF14: 10105 | AG14: 102.9441728
A15: На 07.06.2021г. | E15: 1351 | H15: 2185 | K15: 1419 | N15: 150 | T15: 5105 | W15: 652 | Z15: 750 | AB15: 5406 | AC15: 414 | AD15: 1 | AE15: 12257 | AF15: 12328 | AG15: 100.6
B16: ООО "Агросепыч" посеяли 15 га ярового рапса, но в статистике не указали, т.к. посев провели после отчета в статистику.
